[Event "***Titled Tuesday 3|2 Blitz"]
[Site "Chess.com"]
[Date "2017.02.07"]
[Round "5"]
[White "macko06"]
[Black "ER404"]
[Result "1-0"]
[WhiteElo "2373"]
[BlackElo "2145"]
[TimeControl "180+2"]
[EndTime "14:09:57 PST"]
[Termination "macko06 won by resignation"]

1. d4 {[%clk 0:03:02]} 1... Nf6 {[%clk 0:02:59.8]} 2. Bf4 {[%clk 0:03:02.7]}
2... g6 {[%clk 0:02:59.8]} 3. Nc3 {[%clk 0:03:03.6]} 3... Bg7 {[%clk 0:03:01.4]}
4. e4 {[%clk 0:03:04.6]} 4... d6 {[%clk 0:03:02.3]} 5. Qd2 {[%clk 0:03:05.4]}
5... a6 {[%clk 0:03:01.4]} 6. a4 {[%clk 0:03:05.7]} 6... b6 {[%clk 0:02:51.4]}
7. Bh6 {[%clk 0:03:03]} 7... Bxh6 {[%clk 0:02:51.8]} 8. Qxh6 {[%clk 0:03:04.9]}
8... Bb7 {[%clk 0:02:50.7]} 9. Bd3 {[%clk 0:03:03.6]} 9... Nbd7 {[%clk
0:02:50.3]} 10. Nf3 {[%clk 0:02:54.2]} 10... c5 {[%clk 0:02:35.7]} 11. d5 {[%clk
0:02:41.2]} 11... Rc8 {[%clk 0:02:35.9]} 12. O-O {[%clk 0:02:33.7]} 12... c4
{[%clk 0:02:36.6]} 13. Be2 {[%clk 0:02:34.9]} 13... Nc5 {[%clk 0:02:29.8]} 14.
Nd2 {[%clk 0:02:25.9]} 14... b5 {[%clk 0:02:27.4]} 15. axb5 {[%clk 0:02:26.2]}
15... axb5 {[%clk 0:02:29.3]} 16. Nxb5 {[%clk 0:02:21.9]} 16... Ncxe4 {[%clk
0:02:28.8]} 17. Nxe4 {[%clk 0:02:23.2]} 17... Nxe4 {[%clk 0:02:29]} 18. Qg7
{[%clk 0:02:24]} 18... Rf8 {[%clk 0:02:28.8]} 19. Qd4 {[%clk 0:02:04.9]} 19...
Nf6 {[%clk 0:02:06.3]} 20. Bxc4 {[%clk 0:02:02.5]} 20... Rc5 {[%clk 0:02:06.7]}
21. Nc3 {[%clk 0:01:58.9]} 21... Qc7 {[%clk 0:01:42.2]} 22. Bb5+ {[%clk
0:01:49.9]} 22... Kd8 {[%clk 0:01:43.3]} 23. Ra7 {[%clk 0:01:34.9]} 23... Qb6
{[%clk 0:01:43.9]} 24. Rfa1 {[%clk 0:01:32.3]} 24... Rxb5 {[%clk 0:01:41.4]} 25.
Nxb5 {[%clk 0:01:33.2]} 25... Qxb5 {[%clk 0:01:42.4]} 26. Ra8+ {[%clk
0:01:30.1]} 26... Kd7 {[%clk 0:00:50]} 27. Rxf8 {[%clk 0:01:29.4]} 27... Qxd5
{[%clk 0:00:44.9]} 28. Qxd5 {[%clk 0:01:29.2]} 28... Nxd5 {[%clk 0:00:44.8]} 29.
Ra7 {[%clk 0:01:27.8]} 29... Kc6 {[%clk 0:00:42.8]} 30. Rxf7 {[%clk 0:01:28.9]}
30... Kb6 {[%clk 0:00:43.5]} 31. Rxb7+ {[%clk 0:01:29.6]} 31... Kxb7 {[%clk
0:00:45.4]} 32. Rxh7 {[%clk 0:01:31]} 32... Kc6 {[%clk 0:00:44.1]} 33. Rg7
{[%clk 0:01:31.4]} 1-0

[Event "***Titled Tuesday 3|2 Blitz"]
[Site "Chess.com"]
[Date "2017.02.07"]
[Round "5"]
[White "Vegan4future"]
[Black "Lukianoo"]
[Result "0-1"]
[WhiteElo "2422"]
[BlackElo "2611"]
[TimeControl "180+2"]
[EndTime "14:10:13 PST"]
[Termination "Lukianoo won by resignation"]

1. d4 {[%clk 0:03:02]} 1... Nf6 {[%clk 0:03:00.3]} 2. c4 {[%clk 0:03:02.9]} 2...
e6 {[%clk 0:03:01.1]} 3. Nf3 {[%clk 0:03:02.4]} 3... Bb4+ {[%clk 0:03:00.5]} 4.
Bd2 {[%clk 0:02:59.6]} 4... Qe7 {[%clk 0:02:59.8]} 5. g3 {[%clk 0:03:00.5]} 5...
Nc6 {[%clk 0:02:58.6]} 6. Bg2 {[%clk 0:03:01.2]} 6... Bxd2+ {[%clk 0:02:59.7]}
7. Nbxd2 {[%clk 0:03:03.1]} 7... d6 {[%clk 0:03:00.3]} 8. O-O {[%clk 0:03:04]}
8... e5 {[%clk 0:03:01.7]} 9. d5 {[%clk 0:02:54.7]} 9... Nb8 {[%clk 0:03:02.7]}
10. h3 {[%clk 0:02:52.7]} 10... a5 {[%clk 0:03:02.9]} 11. e4 {[%clk 0:02:52.9]}
11... O-O {[%clk 0:03:03.1]} 12. Re1 {[%clk 0:02:53.2]} 12... Nbd7 {[%clk
0:02:49.9]} 13. Nf1 {[%clk 0:02:51.5]} 13... Nc5 {[%clk 0:02:49.6]} 14. Qc2
{[%clk 0:02:40.7]} 14... c6 {[%clk 0:02:47.4]} 15. N3d2 {[%clk 0:02:26.7]} 15...
cxd5 {[%clk 0:02:46.3]} 16. cxd5 {[%clk 0:02:25.8]} 16... Bd7 {[%clk 0:02:44.4]}
17. Ne3 {[%clk 0:02:12.6]} 17... Rfc8 {[%clk 0:02:43.9]} 18. Qb1 {[%clk
0:02:13.4]} 18... Bb5 {[%clk 0:02:35.4]} 19. Bf1 {[%clk 0:02:13]} 19... Bxf1
{[%clk 0:02:36]} 20. Rxf1 {[%clk 0:02:09.7]} 20... Qd7 {[%clk 0:02:36.8]} 21.
Kg2 {[%clk 0:02:09.8]} 21... Qb5 {[%clk 0:02:33.6]} 22. b3 {[%clk 0:01:58]}
22... Qe2 {[%clk 0:02:26.7]} 23. Rd1 {[%clk 0:01:44.1]} 23... Nd3 {[%clk
0:02:20.6]} 24. Nef1 {[%clk 0:01:16.4]} 24... Qxf2+ {[%clk 0:02:13.3]} 25. Kh1
{[%clk 0:01:17.3]} 25... Qe2 {[%clk 0:02:08.7]} 26. Nc4 {[%clk 0:00:57.9]} 26...
Nxe4 {[%clk 0:01:54.5]} 27. Rxd3 {[%clk 0:00:47.9]} 27... Nf2+ {[%clk
0:01:55.2]} 28. Kg1 {[%clk 0:00:49.2]} 28... Nxd3 {[%clk 0:01:56.2]} 29. Qd1
{[%clk 0:00:46.2]} 29... Qf2+ {[%clk 0:01:53.6]} 30. Kh1 {[%clk 0:00:46.6]}
30... Qd4 {[%clk 0:01:54.4]} 31. Kh2 {[%clk 0:00:35.7]} 31... Qxd5 {[%clk
0:01:50.2]} 32. Nfe3 {[%clk 0:00:34.8]} 32... Qd4 {[%clk 0:01:50.3]} 33. Nf5
{[%clk 0:00:35.2]} 33... Qf2+ {[%clk 0:01:50.8]} 34. Kh1 {[%clk 0:00:36.3]}
34... Qxf5 {[%clk 0:01:50.5]} 35. Nxd6 {[%clk 0:00:37.7]} 35... Nf2+ {[%clk
0:01:50.2]} 36. Kh2 {[%clk 0:00:37]} 36... Nxd1 {[%clk 0:01:50]} 37. Nxf5 {[%clk
0:00:38.5]} 37... Nc3 {[%clk 0:01:49.9]} 38. Ne7+ {[%clk 0:00:38.8]} 38... Kf8
{[%clk 0:01:50.4]} 39. Nxc8 {[%clk 0:00:40.7]} 39... Rxc8 {[%clk 0:01:51.6]} 40.
a4 {[%clk 0:00:42.6]} 40... Nd5 {[%clk 0:01:50.2]} 0-1

[Event "***Titled Tuesday 3|2 Blitz"]
[Site "Chess.com"]
[Date "2017.02.07"]
[Round "5"]
[White "DryCounty"]
[Black "Rozum_Ivan"]
[Result "0-1"]
[WhiteElo "2396"]
[BlackElo "2565"]
[TimeControl "180+2"]
[EndTime "14:10:21 PST"]
[Termination "Rozum_Ivan won by resignation"]

1. e4 {[%clk 0:03:02]} 1... e6 {[%clk 0:02:58.6]} 2. d4 {[%clk 0:03:00]} 2... d5
{[%clk 0:03:00.3]} 3. exd5 {[%clk 0:03:00.7]} 3... exd5 {[%clk 0:03:00.7]} 4.
Nf3 {[%clk 0:03:01.9]} 4... Nc6 {[%clk 0:03:00.7]} 5. h3 {[%clk 0:03:01.8]} 5...
Bd6 {[%clk 0:03:01.3]} 6. c4 {[%clk 0:03:00.9]} 6... dxc4 {[%clk 0:03:02.3]} 7.
Bxc4 {[%clk 0:03:01.2]} 7... Nge7 {[%clk 0:03:03.1]} 8. O-O {[%clk 0:03:01.4]}
8... Be6 {[%clk 0:03:03.4]} 9. Bxe6 {[%clk 0:02:59.9]} 9... fxe6 {[%clk
0:03:05.3]} 10. Qb3 {[%clk 0:02:57.3]} 10... Qd7 {[%clk 0:03:03.6]} 11. Qxb7
{[%clk 0:02:51.2]} 11... O-O {[%clk 0:03:03.8]} 12. Qb3 {[%clk 0:02:48.7]} 12...
Rab8 {[%clk 0:03:03.4]} 13. Qd1 {[%clk 0:02:42.6]} 13... Nf5 {[%clk 0:02:56.7]}
14. Nc3 {[%clk 0:02:25.8]} 14... Ncxd4 {[%clk 0:02:56.2]} 15. Nxd4 {[%clk
0:02:26]} 15... Nxd4 {[%clk 0:02:58.1]} 16. b3 {[%clk 0:02:18.1]} 16... c5
{[%clk 0:02:56.5]} 17. Be3 {[%clk 0:02:13.3]} 17... Bc7 {[%clk 0:02:57.3]} 18.
Ne4 {[%clk 0:02:09.5]} 18... Qd5 {[%clk 0:02:37.2]} 19. Qg4 {[%clk 0:01:08.8]}
19... Qe5 {[%clk 0:02:28.7]} 20. Ng3 {[%clk 0:01:03.3]} 20... Nc2 {[%clk
0:02:27.8]} 21. Rae1 {[%clk 0:00:28.4]} 21... Nxe1 {[%clk 0:02:28.7]} 22. Rxe1
{[%clk 0:00:29.1]} 22... Rbe8 {[%clk 0:02:15.9]} 23. Qe4 {[%clk 0:00:22.3]}
23... Qd5 {[%clk 0:02:12.5]} 24. Qg4 {[%clk 0:00:17.4]} 24... Bb6 {[%clk
0:02:13.1]} 25. Rd1 {[%clk 0:00:15.8]} 25... Qe5 {[%clk 0:02:09]} 26. Qe4 {[%clk
0:00:16.8]} 26... Qxe4 {[%clk 0:02:08.1]} 27. Nxe4 {[%clk 0:00:17.3]} 27... c4
{[%clk 0:02:09.3]} 28. Bxb6 {[%clk 0:00:12.6]} 28... axb6 {[%clk 0:02:08.9]} 29.
bxc4 {[%clk 0:00:13.8]} 29... Rc8 {[%clk 0:02:09.3]} 30. Rd4 {[%clk 0:00:13.9]}
30... Rfd8 {[%clk 0:02:09.8]} 31. Rxd8+ {[%clk 0:00:08.6]} 31... Rxd8 {[%clk
0:02:11.7]} 32. Kf1 {[%clk 0:00:08.9]} 32... Rd4 {[%clk 0:02:12]} 33. Ng5 {[%clk
0:00:09.8]} 33... Rxc4 {[%clk 0:02:10.7]} 34. Nxe6 {[%clk 0:00:10.3]} 34... Ra4
{[%clk 0:02:10.8]} 35. Nc7 {[%clk 0:00:07.5]} 35... Rxa2 {[%clk 0:02:11.7]} 36.
Nd5 {[%clk 0:00:08.4]} 36... b5 {[%clk 0:02:11.3]} 37. Nc3 {[%clk 0:00:09.5]}
37... Rb2 {[%clk 0:02:12.7]} 38. f4 {[%clk 0:00:09]} 38... b4 {[%clk 0:02:13.7]}
39. Nd5 {[%clk 0:00:09.9]} 39... b3 {[%clk 0:02:14.8]} 40. g4 {[%clk 0:00:11]}
40... Rc2 {[%clk 0:02:15.7]} 41. Ne3 {[%clk 0:00:11.3]} 41... b2 {[%clk
0:02:17.1]} 0-1

[Event "***Titled Tuesday 3|2 Blitz"]
[Site "Chess.com"]
[Date "2017.02.07"]
[Round "5"]
[White "AllStarShark"]
[Black "plouarzel"]
[Result "0-1"]
[WhiteElo "2250"]
[BlackElo "2407"]
[TimeControl "180+2"]
[EndTime "14:10:30 PST"]
[Termination "plouarzel won by checkmate"]

1. d4 {[%clk 0:03:02]} 1... d6 {[%clk 0:03:00.5]} 2. Nf3 {[%clk 0:03:01.4]} 2...
Nf6 {[%clk 0:02:59.6]} 3. g3 {[%clk 0:03:02]} 3... g6 {[%clk 0:03:00.3]} 4. Bg2
{[%clk 0:03:03.6]} 4... Bg7 {[%clk 0:03:00.8]} 5. O-O {[%clk 0:03:05.2]} 5...
O-O {[%clk 0:03:02.1]} 6. Nc3 {[%clk 0:03:04.9]} 6... d5 {[%clk 0:02:58.4]} 7.
Bf4 {[%clk 0:03:05]} 7... c6 {[%clk 0:02:58.6]} 8. Ne5 {[%clk 0:03:04.7]} 8...
Nfd7 {[%clk 0:02:58.1]} 9. e4 {[%clk 0:03:01.1]} 9... Nxe5 {[%clk 0:02:56.3]}
10. Bxe5 {[%clk 0:02:58.1]} 10... Bxe5 {[%clk 0:02:55.6]} 11. dxe5 {[%clk
0:02:57.5]} 11... d4 {[%clk 0:02:56.2]} 12. Ne2 {[%clk 0:02:57]} 12... c5 {[%clk
0:02:56.6]} 13. c3 {[%clk 0:02:56.7]} 13... Nc6 {[%clk 0:02:57.9]} 14. f4 {[%clk
0:02:54.6]} 14... Bg4 {[%clk 0:02:56.3]} 15. h3 {[%clk 0:02:49.3]} 15... Bxe2
{[%clk 0:02:57.1]} 16. Qxe2 {[%clk 0:02:50.3]} 16... a6 {[%clk 0:02:52.5]} 17.
Qc4 {[%clk 0:02:27.8]} 17... Qb6 {[%clk 0:02:42.5]} 18. e6 {[%clk 0:02:19.5]}
18... f6 {[%clk 0:02:39.5]} 19. cxd4 {[%clk 0:02:14.7]} 19... Nxd4 {[%clk
0:02:38.4]} 20. b3 {[%clk 0:01:51.6]} 20... Qxe6 {[%clk 0:02:36.2]} 21. Qxc5
{[%clk 0:01:49.4]} 21... Rfd8 {[%clk 0:02:31.2]} 22. Rad1 {[%clk 0:01:46.8]}
22... Rac8 {[%clk 0:02:28.6]} 23. Rxd4 {[%clk 0:01:44.2]} 23... Rxc5 {[%clk
0:02:26.8]} 24. Rxd8+ {[%clk 0:01:44.6]} 24... Kg7 {[%clk 0:02:28]} 25. Rd2
{[%clk 0:01:38.5]} 25... Rc3 {[%clk 0:02:25.5]} 26. Kh2 {[%clk 0:01:35.9]} 26...
h5 {[%clk 0:02:26.5]} 27. Rf3 {[%clk 0:01:34.8]} 27... Rxf3 {[%clk 0:02:22.9]}
28. Bxf3 {[%clk 0:01:36.7]} 28... h4 {[%clk 0:02:24.4]} 29. g4 {[%clk
0:01:15.3]} 29... g5 {[%clk 0:02:24.1]} 30. fxg5 {[%clk 0:01:13]} 30... Qe5+
{[%clk 0:02:24.2]} 31. Kh1 {[%clk 0:01:13.7]} 31... fxg5 {[%clk 0:02:21.8]} 32.
Bg2 {[%clk 0:01:11.1]} 32... b5 {[%clk 0:02:16.2]} 33. Rd5 {[%clk 0:01:06.1]}
33... Qa1+ {[%clk 0:02:16.8]} 34. Kh2 {[%clk 0:01:06]} 34... Qc1 {[%clk
0:02:16.6]} 35. Rf5 {[%clk 0:01:02]} 35... e6 {[%clk 0:02:17]} 36. Rf2 {[%clk
0:01:00.3]} 36... a5 {[%clk 0:02:16.6]} 37. Re2 {[%clk 0:00:53.8]} 37... a4
{[%clk 0:02:14.8]} 38. bxa4 {[%clk 0:00:53.8]} 38... bxa4 {[%clk 0:02:16.7]} 39.
Rf2 {[%clk 0:00:53.4]} 39... a3 {[%clk 0:02:17.1]} 40. e5 {[%clk 0:00:52.1]}
40... Qe1 {[%clk 0:02:14.8]} 41. Rf1 {[%clk 0:00:46.8]} 41... Qxe5+ {[%clk
0:02:15.1]} 42. Kh1 {[%clk 0:00:48.3]} 42... Qe2 {[%clk 0:02:14]} 43. Ra1 {[%clk
0:00:43.1]} 43... Qb2 {[%clk 0:02:13.8]} 44. Re1 {[%clk 0:00:44.7]} 44... Qxa2
{[%clk 0:02:14.5]} 45. Kh2 {[%clk 0:00:44.2]} 45... Qb3 {[%clk 0:02:12.2]} 46.
Re5 {[%clk 0:00:43.3]} 46... Qg3+ {[%clk 0:02:12.3]} 47. Kh1 {[%clk 0:00:42.7]}
47... Qxe5 {[%clk 0:02:14.2]} 48. Kg1 {[%clk 0:00:41.6]} 48... a2 {[%clk
0:02:15.5]} 49. Be4 {[%clk 0:00:42.4]} 49... a1=Q+ {[%clk 0:02:14.8]} 50. Kg2
{[%clk 0:00:43.5]} 50... Qg3# {[%clk 0:02:14.4]} 0-1

[Event "***Titled Tuesday 3|2 Blitz"]
[Site "Chess.com"]
[Date "2017.02.07"]
[Round "5"]
[White "Cruel_Yaro"]
[Black "RitvarsReimanis"]
[Result "1-0"]
[WhiteElo "2599"]
[BlackElo "2366"]
[TimeControl "180+2"]
[EndTime "14:10:52 PST"]
[Termination "Cruel_Yaro won by checkmate"]

1. e4 {[%clk 0:03:02]} 1... e6 {[%clk 0:03:00.6]} 2. d4 {[%clk 0:03:02.1]} 2...
d5 {[%clk 0:03:01.9]} 3. e5 {[%clk 0:03:00.4]} 3... f5 {[%clk 0:03:01.9]} 4.
exf6 {[%clk 0:02:56.5]} 4... Nxf6 {[%clk 0:03:02.6]} 5. Nf3 {[%clk 0:02:57.3]}
5... c5 {[%clk 0:03:03.9]} 6. dxc5 {[%clk 0:02:55.6]} 6... Bxc5 {[%clk
0:03:04.2]} 7. Bd3 {[%clk 0:02:56.7]} 7... Nc6 {[%clk 0:03:04.1]} 8. O-O {[%clk
0:02:55.3]} 8... O-O {[%clk 0:03:05.1]} 9. c4 {[%clk 0:02:54.6]} 9... Kh8 {[%clk
0:02:19]} 10. Nc3 {[%clk 0:02:53.3]} 10... a6 {[%clk 0:02:13.6]} 11. Bg5 {[%clk
0:02:53.6]} 11... dxc4 {[%clk 0:02:07]} 12. Bxc4 {[%clk 0:02:53.3]} 12... Qxd1
{[%clk 0:02:08.4]} 13. Raxd1 {[%clk 0:02:53.9]} 13... e5 {[%clk 0:02:04.6]} 14.
Rfe1 {[%clk 0:02:53.5]} 14... Bg4 {[%clk 0:02:03.3]} 15. Rd3 {[%clk 0:02:40.8]}
15... b5 {[%clk 0:01:43.6]} 16. Bb3 {[%clk 0:02:39]} 16... Nb4 {[%clk
0:01:20.8]} 17. Rd2 {[%clk 0:02:31]} 17... Bxf3 {[%clk 0:00:55.9]} 18. gxf3
{[%clk 0:02:31.8]} 18... Bd4 {[%clk 0:00:57.1]} 19. Be3 {[%clk 0:02:20.7]} 19...
Rad8 {[%clk 0:00:50.9]} 20. Red1 {[%clk 0:02:20.8]} 20... Nc6 {[%clk 0:00:49.6]}
21. Ne2 {[%clk 0:02:21.3]} 21... Bxe3 {[%clk 0:00:32]} 22. fxe3 {[%clk 0:02:22]}
22... Rxd2 {[%clk 0:00:32.2]} 23. Rxd2 {[%clk 0:02:23.9]} 23... Rd8 {[%clk
0:00:29.1]} 24. Rc2 {[%clk 0:02:24.7]} 24... Nb4 {[%clk 0:00:25.7]} 25. Rc7
{[%clk 0:02:21.8]} 25... Nd3 {[%clk 0:00:24.4]} 26. Ra7 {[%clk 0:02:19.7]} 26...
Nxb2 {[%clk 0:00:21.4]} 27. Rxa6 {[%clk 0:02:20.7]} 27... h5 {[%clk 0:00:20.8]}
28. Rb6 {[%clk 0:02:19.6]} 28... Nc4 {[%clk 0:00:22]} 29. Rxb5 {[%clk
0:02:19.3]} 29... Nxe3 {[%clk 0:00:18.8]} 30. Rxe5 {[%clk 0:02:20.2]} 30... Ned5
{[%clk 0:00:15.2]} 31. Bxd5 {[%clk 0:02:11.6]} 31... Nxd5 {[%clk 0:00:14.1]} 32.
Rxh5+ {[%clk 0:02:12.3]} 32... Kg8 {[%clk 0:00:16]} 33. a4 {[%clk 0:02:11.9]}
33... Nf6 {[%clk 0:00:14.3]} 34. Rb5 {[%clk 0:02:10.9]} 34... Rd2 {[%clk
0:00:15]} 35. Ng3 {[%clk 0:02:09.9]} 35... Ra2 {[%clk 0:00:16.9]} 36. a5 {[%clk
0:02:11.2]} 36... Nh7 {[%clk 0:00:15.9]} 37. h4 {[%clk 0:02:09.2]} 37... Nf6
{[%clk 0:00:17.1]} 38. Ne4 {[%clk 0:02:07.8]} 38... Nd7 {[%clk 0:00:12.2]} 39.
Nf2 {[%clk 0:02:07.1]} 39... Nf6 {[%clk 0:00:13]} 40. Kg2 {[%clk 0:02:08.2]}
40... Kf7 {[%clk 0:00:14.4]} 41. Kg3 {[%clk 0:02:09.3]} 41... Ra4 {[%clk
0:00:15.3]} 42. Nd3 {[%clk 0:02:09.5]} 42... g6 {[%clk 0:00:13.8]} 43. Nf4
{[%clk 0:02:04.5]} 43... Ne8 {[%clk 0:00:08.4]} 44. Rb7+ {[%clk 0:02:04.7]}
44... Kf6 {[%clk 0:00:07.9]} 45. Rb6+ {[%clk 0:02:05.8]} 45... Kf5 {[%clk
0:00:09]} 46. Rxg6 {[%clk 0:02:06.5]} 46... Nf6 {[%clk 0:00:06.3]} 47. Rg5#
{[%clk 0:02:07.5]} 1-0

[Event "***Titled Tuesday 3|2 Blitz"]
[Site "Chess.com"]
[Date "2017.02.07"]
[Round "5"]
[White "Dale"]
[Black "Saitama_Hero"]
[Result "1-0"]
[WhiteElo "1989"]
[BlackElo "2038"]
[TimeControl "180+2"]
[EndTime "14:10:54 PST"]
[Termination "Dale won by resignation"]

1. h4 {[%clk 0:03:02]} 1... e5 {[%clk 0:02:55.9]} 2. g4 {[%clk 0:03:01.8]} 2...
d5 {[%clk 0:02:54.7]} 3. d4 {[%clk 0:03:03]} 3... exd4 {[%clk 0:02:50.5]} 4. Nf3
{[%clk 0:02:57.6]} 4... Bxg4 {[%clk 0:02:43.2]} 5. Ne5 {[%clk 0:02:57.2]} 5...
Be6 {[%clk 0:02:39.5]} 6. Bg2 {[%clk 0:02:53.3]} 6... c5 {[%clk 0:02:37.8]} 7.
c4 {[%clk 0:02:53.5]} 7... Nf6 {[%clk 0:02:32.3]} 8. Qb3 {[%clk 0:02:44.8]} 8...
Qb6 {[%clk 0:02:05]} 9. cxd5 {[%clk 0:02:35.3]} 9... Qxb3 {[%clk 0:02:02.9]} 10.
axb3 {[%clk 0:02:27.4]} 10... Bxd5 {[%clk 0:02:04.4]} 11. Rg1 {[%clk 0:02:22.9]}
11... Bd6 {[%clk 0:02:00.4]} 12. Nc4 {[%clk 0:02:23.1]} 12... Bh2 {[%clk
0:01:46.3]} 13. Bxd5 {[%clk 0:02:21.8]} 13... Nxd5 {[%clk 0:01:34.8]} 14. Rxg7
{[%clk 0:02:20.6]} 14... Nc6 {[%clk 0:01:27.2]} 15. Bh6 {[%clk 0:02:17]} 15...
Bc7 {[%clk 0:01:01.5]} 16. Nba3 {[%clk 0:02:13.9]} 16... a6 {[%clk 0:00:53]} 17.
Nb5 {[%clk 0:02:10]} 17... O-O-O {[%clk 0:00:44.8]} 18. Nxc7 {[%clk 0:02:09]}
18... Kxc7 {[%clk 0:00:46.7]} 19. Rxf7+ {[%clk 0:02:09.6]} 19... Rd7 {[%clk
0:00:48.1]} 20. Rf5 {[%clk 0:02:01.5]} 20... Re8 {[%clk 0:00:46.4]} 21. Kf1
{[%clk 0:02:01.7]} 21... Ndb4 {[%clk 0:00:43.8]} 22. Rxc5 {[%clk 0:01:58.8]}
22... Re6 {[%clk 0:00:40.1]} 23. Bf4+ {[%clk 0:01:58.4]} 23... Kd8 {[%clk
0:00:40]} 24. Rd1 {[%clk 0:01:50.7]} 24... Rf7 {[%clk 0:00:37.8]} 25. Bg5+
{[%clk 0:01:48.4]} 25... Kc7 {[%clk 0:00:37.3]} 26. Na3 {[%clk 0:01:37.3]} 26...
b6 {[%clk 0:00:32.3]} 27. Rc4 {[%clk 0:01:37.1]} 27... b5 {[%clk 0:00:31.7]} 28.
Rc5 {[%clk 0:01:37.7]} 28... Kb6 {[%clk 0:00:31.9]} 29. Rcc1 {[%clk 0:01:34.7]}
29... h6 {[%clk 0:00:31.5]} 30. Bd2 {[%clk 0:01:32]} 30... Nd5 {[%clk
0:00:32.5]} 31. Nc2 {[%clk 0:01:25.3]} 31... d3 {[%clk 0:00:29.6]} 32. exd3
{[%clk 0:01:17.1]} 32... Ref6 {[%clk 0:00:31]} 33. Ne3 {[%clk 0:01:05.1]} 33...
Rxf2+ {[%clk 0:00:28.6]} 34. Kg1 {[%clk 0:01:06.1]} 34... Nd4 {[%clk 0:00:18.7]}
35. Nxd5+ {[%clk 0:01:05.7]} 35... Kb7 {[%clk 0:00:19.4]} 36. Rc7+ {[%clk
0:01:04.6]} 36... Rxc7 {[%clk 0:00:19.5]} 37. Kxf2 {[%clk 0:01:05]} 1-0

[Event "***Titled Tuesday 3|2 Blitz"]
[Site "Chess.com"]
[Date "2017.02.07"]
[Round "5"]
[White "scenicregal"]
[Black "oskariot"]
[Result "0-1"]
[WhiteElo "1844"]
[BlackElo "2508"]
[TimeControl "180+2"]
[EndTime "14:11:02 PST"]
[Termination "oskariot won by resignation"]

1. e4 {[%clk 0:03:02]} 1... g6 {[%clk 0:03:00.7]} 2. f4 {[%clk 0:02:57.6]} 2...
Bg7 {[%clk 0:03:02.6]} 3. Nf3 {[%clk 0:02:58]} 3... d6 {[%clk 0:03:04.2]} 4. Nc3
{[%clk 0:02:56.1]} 4... a6 {[%clk 0:03:05.7]} 5. a4 {[%clk 0:02:45.3]} 5... b6
{[%clk 0:03:04.3]} 6. Bc4 {[%clk 0:02:45.3]} 6... Bb7 {[%clk 0:03:04.1]} 7. d3
{[%clk 0:02:43.3]} 7... e6 {[%clk 0:03:04.9]} 8. O-O {[%clk 0:02:38]} 8... Ne7
{[%clk 0:03:05.6]} 9. Qe1 {[%clk 0:02:34.8]} 9... d5 {[%clk 0:03:05.9]} 10. Bb3
{[%clk 0:02:28.3]} 10... O-O {[%clk 0:02:54.9]} 11. g4 {[%clk 0:02:13.2]} 11...
c5 {[%clk 0:02:35]} 12. f5 {[%clk 0:02:00.7]} 12... c4 {[%clk 0:02:31.7]} 13.
Ba2 {[%clk 0:01:43]} 13... dxe4 {[%clk 0:02:11.1]} 14. dxe4 {[%clk 0:01:38.6]}
14... exf5 {[%clk 0:02:06.5]} 15. gxf5 {[%clk 0:01:36.4]} 15... b5 {[%clk
0:02:04.9]} 16. Ng5 {[%clk 0:01:21.5]} 16... Bd4+ {[%clk 0:01:57.5]} 17. Be3
{[%clk 0:01:18]} 17... Nxf5 {[%clk 0:01:45.5]} 18. Rxf5 {[%clk 0:00:52]} 18...
gxf5 {[%clk 0:01:45.2]} 19. Qg3 {[%clk 0:00:34.9]} 19... Bxe3+ {[%clk
0:01:43.8]} 20. Qxe3 {[%clk 0:00:35.4]} 20... Nd7 {[%clk 0:01:42.2]} 21. Rd1
{[%clk 0:00:31.5]} 21... Qb6 {[%clk 0:01:38.5]} 22. Rd4 {[%clk 0:00:21.5]} 22...
f4 {[%clk 0:01:32.7]} 23. Qd2 {[%clk 0:00:19.7]} 23... Ne5 {[%clk 0:01:31.1]}
24. Kf1 {[%clk 0:00:16.8]} 24... Rad8 {[%clk 0:01:31.5]} 25. Rxd8 {[%clk
0:00:16.9]} 25... Rxd8 {[%clk 0:01:30.5]} 26. Qxf4 {[%clk 0:00:17]} 26... Qd6
{[%clk 0:01:11.2]} 27. axb5 {[%clk 0:00:15.3]} 27... axb5 {[%clk 0:01:11.5]} 28.
Nxb5 {[%clk 0:00:15.1]} 28... Qd1+ {[%clk 0:01:11.8]} 29. Kg2 {[%clk 0:00:11.9]}
29... Rd2+ {[%clk 0:01:12.6]} 30. Kh3 {[%clk 0:00:12.7]} 30... Bc8+ {[%clk
0:01:08]} 31. Kg3 {[%clk 0:00:09.4]} 31... Qg1+ {[%clk 0:01:08]} 32. Kh4 {[%clk
0:00:08.8]} 32... Rxh2+ {[%clk 0:01:07.2]} 0-1

[Event "***Titled Tuesday 3|2 Blitz"]
[Site "Chess.com"]
[Date "2017.02.07"]
[Round "5"]
[White "Paralinch"]
[Black "AlexanderL"]
[Result "0-1"]
[WhiteElo "2616"]
[BlackElo "2613"]
[TimeControl "180+2"]
[EndTime "14:11:05 PST"]
[Termination "AlexanderL won by resignation"]

1. e4 {[%clk 0:03:02]} 1... e6 {[%clk 0:03:01.1]} 2. d4 {[%clk 0:03:03]} 2... d5
{[%clk 0:03:01.7]} 3. exd5 {[%clk 0:03:04]} 3... exd5 {[%clk 0:03:03.6]} 4. Nf3
{[%clk 0:03:05.9]} 4... Bd6 {[%clk 0:03:04.7]} 5. c4 {[%clk 0:03:05.3]} 5... Nf6
{[%clk 0:03:04.7]} 6. Nc3 {[%clk 0:03:05.7]} 6... O-O {[%clk 0:03:05.5]} 7. Bg5
{[%clk 0:03:06.9]} 7... Re8+ {[%clk 0:03:04.7]} 8. Be2 {[%clk 0:03:07.9]} 8...
dxc4 {[%clk 0:03:06]} 9. O-O {[%clk 0:03:09.1]} 9... Nc6 {[%clk 0:03:04.6]} 10.
h3 {[%clk 0:02:47.3]} 10... h6 {[%clk 0:03:04.5]} 11. Bh4 {[%clk 0:02:42.6]}
11... g5 {[%clk 0:02:52.3]} 12. Bg3 {[%clk 0:02:43.7]} 12... Bxg3 {[%clk
0:02:53]} 13. fxg3 {[%clk 0:02:45.6]} 13... Be6 {[%clk 0:02:51.5]} 14. Qd2
{[%clk 0:02:35.7]} 14... Nd5 {[%clk 0:02:11.2]} 15. Bxc4 {[%clk 0:02:35.7]}
15... Ne3 {[%clk 0:02:03.1]} 16. Bxe6 {[%clk 0:02:25.4]} 16... Nxf1 {[%clk
0:01:58.6]} 17. Bxf7+ {[%clk 0:02:26.1]} 17... Kxf7 {[%clk 0:02:00.5]} 18. Rxf1
{[%clk 0:02:26.9]} 18... Kg7 {[%clk 0:02:02.2]} 19. d5 {[%clk 0:02:28.2]} 19...
Ne5 {[%clk 0:01:57.7]} 20. Qd4 {[%clk 0:02:21.6]} 20... Qf6 {[%clk 0:01:56.8]}
21. Nxe5 {[%clk 0:01:43.6]} 21... Qxe5 {[%clk 0:01:57.6]} 22. Qg4 {[%clk
0:01:45.3]} 22... Rad8 {[%clk 0:01:48.9]} 23. Kh2 {[%clk 0:01:45.9]} 23... Rf8
{[%clk 0:01:48.3]} 24. Rxf8 {[%clk 0:01:46.4]} 24... Rxf8 {[%clk 0:01:48.9]} 25.
a4 {[%clk 0:01:24.4]} 25... a5 {[%clk 0:01:33.5]} 26. Nb5 {[%clk 0:01:19.2]}
26... Kg6 {[%clk 0:01:29.1]} 27. Qd1 {[%clk 0:01:13.4]} 27... Rf2 {[%clk
0:00:59.4]} 28. Nd4 {[%clk 0:00:42.3]} 28... Qxd5 {[%clk 0:00:46.5]} 29. Qd3+
{[%clk 0:00:22.4]} 29... Kf6 {[%clk 0:00:41.8]} 0-1